fUSD/lending_fUSD_20240814
["ID","MTS","AMOUNT","RATE_DAILY","PERIOD"]
[334947710,1723666253045,-500.0,0.0001468,2]
[334947711,1723666253055,-500.0,0.0001468,2]
[334947712,1723666253064,-500.0,0.0001468,2]
[334947713,1723666253074,-500.0,0.0001468,2]
[334947714,1723666253085,-500.0,0.0001468,2]
[334947715,1723666253095,-500.0,0.0001468,2]
[334947716,1723666253105,-500.0,0.0001468,2]
[334947717,1723666253116,-500.0,0.0001468,2]
[334947718,1723666253126,-500.0,0.0001468,2]
[334947719,1723666253136,-646.37222149,0.0001468,2]
[334947720,1723666253147,-284.21488969,0.0001468,2]
[334947721,1723666253155,-500.0,0.0001468,2]
[334947722,1723666253165,-500.0,0.0001468,2]
[334947723,1723666253174,-500.0,0.0001468,2]
[334947724,1723666253184,-500.0,0.0001468,2]
[334947725,1723666253194,-595.41,0.0001468,2]
[334947726,1723666253203,-500.0,0.0001468,2]
[334947727,1723666253214,-549.85,0.0001468,2]
[334947728,1723666253225,-500.0,0.0001468,2]
[334947729,1723666253235,-500.0,0.0001468,2]
[334947730,1723666253245,-500.0,0.0001468,2]
[334947731,1723666253256,-655.84,0.0001468,2]
[334947732,1723666253266,-232.44055568,0.0001468,2]
[334947733,1723666253274,-242.67537751,0.0001468,2]
[334947734,1723666253283,-622.85,0.0001468,2]
[334947735,1723666253293,-500.0,0.0001468,2]
[334947736,1723666253303,-500.0,0.0001468,2]
[334947737,1723666253315,-517.51,0.0001468,2]
[334947738,1723666253327,-500.0,0.0001468,2]
[334947739,1723666253337,-612.93,0.00014681,2]
[334947740,1723666253347,-500.0,0.00014682,2]
[334947741,1723666253358,-500.0,0.00014682,2]
[334947742,1723666253367,-542.90279235,0.00014682,2]
[334947743,1723666253379,-500.0,0.00014682,2]
[334947744,1723666253391,-500.0,0.00014682,2]
[334947745,1723666253402,-506.84,0.00014682,2]
[334947746,1723666253412,-500.0,0.00014682,2]
[334947747,1723666253421,-372.72,0.00014682,2]
[334947748,1723666253430,-500.0,0.00014682,2]
[334947749,1723666253439,-500.0,0.00014682,2]
[334947750,1723666253449,-500.0,0.00014682,2]
[334947751,1723666253460,-500.0,0.00014682,2]
[334947752,1723666253469,-500.0,0.00014682,2]
[334947753,1723666253479,-653.05,0.00014682,2]
[334947754,1723666253489,-500.0,0.00014682,2]
[334947755,1723666253499,-500.0,0.00014682,2]
[334947756,1723666253508,-500.0,0.00014682,2]
[334947757,1723666253517,-500.0,0.00014682,2]
[334947758,1723666253527,-383.75534301,0.00014682,2]
[334947759,1723666253536,-500.0,0.00014682,2]
[334947760,1723666253545,-500.0,0.00014682,2]
[334947761,1723666253553,-500.0,0.00014682,2]
[334947762,1723666253563,-500.0,0.00014682,2]
[334947763,1723666253658,-500.0,0.00014682,2]
[334947764,1723666253678,-500.0,0.00014682,2]
[334947765,1723666253688,-500.0,0.00014682,2]
[334947766,1723666253698,-500.0,0.00014682,2]
[334947767,1723666253707,-540.46,0.00014682,2]
[334947768,1723666253715,-500.0,0.00014682,2]
[334947769,1723666253724,-744.68,0.00014682,2]
[334947770,1723666253734,-500.0,0.00014682,2]
[334947771,1723666253743,-248.79924938,0.00014682,2]
[334947772,1723666254009,-251.20075062,0.00014682,2]
[334947773,1723666254019,-500.0,0.00014682,2]
[334947774,1723666254029,-1043.61,0.00014682,2]
[334947775,1723666254039,-500.0,0.00014682,2]
[334947776,1723666254048,-376.81599966,0.00014682,2]
[334947777,1723666254057,-632.89,0.00014682,2]
[334947778,1723666254066,-558.19,0.00014682,2]
[334947779,1723666254075,-500.0,0.00014682,2]
[334947780,1723666254084,-500.0,0.00014682,2]
[334947781,1723666254093,-639.06,0.00014682,2]
[334947782,1723666254102,-858.56738273,0.00014682,2]
[334947783,1723666254374,-3265.01060924,0.00012614,2]
[334947784,1723666254387,-2165.68177957,0.00012614,2]
[334947785,1723666254403,-754.9399989,0.00012614,2]
[334947786,1723666254414,-338.33948636,0.00012614,2]
[334947787,1723666254425,-311.7686698,0.00012614,2]
[334947788,1723666254436,-571.571,0.00012614,2]
[334947789,1723666254448,-674.16794245,0.00012614,2]
[334947790,1723666254460,-1082.91734936,0.00012614,2]
[334947791,1723666254478,-835.60316432,0.00012614,2]
[334947792,1723666254489,-249.51,0.00013851,2]
[334947793,1723666254498,-249.51,0.00013851,2]
[334947794,1723666254507,-249.51,0.00013851,2]
[334947795,1723666254516,-249.51,0.00013851,2]
[334947796,1723666254526,-249.51,0.00013851,2]
[334947797,1723666254536,-249.51,0.00013851,2]
[334947798,1723666254545,-249.51,0.00013851,2]
[334947799,1723666254554,-249.51,0.00013851,2]
[334947800,1723666254563,-103.09654606,0.0001397,2]
[334947801,1723666254575,-392.33990348,0.0001397,2]
[334947802,1723666254585,-282.68509652,0.00014406,2]
[334947803,1723666254596,-217.31490348,0.00014406,2]
[334947804,1723666254605,-479.92332116,0.0001468,2]
[334947805,1723666254618,-20.07667884,0.0001468,2]
[334947806,1723666254629,-308.31333116,0.00014682,2]
[334947807,1723666254655,-389.97928611,0.00014682,2]
[334947808,1723666254664,-131.33235033,0.00014682,2]
[334947809,1723666254675,-305.67881732,0.00014682,2]
[334947810,1723666254686,-62.98883235,0.00014682,2]
[334947811,1723666254695,-500.0,0.00014682,2]
[334947812,1723666254703,-1.28327965,0.00014682,2]
[334947813,1723666254714,-463.3999995,0.00014682,2]
[334947814,1723666254725,-129.23672085,0.00014682,2]
[334947815,1723666254734,-500.0,0.00014682,2]
[334947816,1723666254743,-1818.37107783,0.00014682,2]
[334947817,1723666254754,-155.79892217,0.00014682,2]
[334947818,1723666254763,-288.44887335,0.00014682,2]
[334947819,1723666255167,-211.55112665,0.00014682,2]
[334947820,1723666255177,-533.39,0.00014682,2]
[334947821,1723666255186,-527.04,0.00014682,2]
[334947822,1723666255195,-500.0,0.00014682,2]
[334947823,1723666255205,-500.0,0.00014682,2]
[334947824,1723666255214,-568.5,0.00014682,2]
[334947825,1723666255225,-500.0,0.00014682,2]
[334947826,1723666255235,-514.92,0.00014682,2]
[334947827,1723666255246,-500.0,0.00014682,2]
[334947828,1723666255255,-500.0,0.00014682,2]
[334947829,1723666255265,-566.98,0.00014682,2]
[334947830,1723666255276,-500.0,0.00014682,2]
[334947831,1723666255286,-500.0,0.00014682,2]
[334947832,1723666255294,-500.0,0.00014682,2]
[334947833,1723666255304,-500.0,0.00014682,2]
[334947834,1723666255314,-424.73946485,0.00014683,2]
[334947835,1723666255323,-500.0,0.00014683,2]
[334947836,1723666255332,-500.0,0.00014683,2]
[334947837,1723666255341,-500.0,0.00014683,2]
[334947838,1723666255351,-500.0,0.00014683,2]
[334947839,1723666255361,-500.0,0.00014683,2]
[334947840,1723666255370,-500.0,0.00014683,2]
[334947841,1723666255379,-145.54877034,0.00014683,2]
[334947842,1723666255392,-354.45122966,0.00014683,2]
[334947843,1723666255402,-545.43174129,0.00014683,2]
[334947844,1723666255411,-500.0,0.00014683,2]
[334947845,1723666255420,-500.0,0.00014683,2]
[334947846,1723666255429,-511.92,0.00014683,2]
[334947847,1723666255438,-500.0,0.00014683,2]
[334947848,1723666255447,-500.0,0.00014683,2]
[334947849,1723666255457,-500.0,0.00014683,2]
[334947850,1723666255466,-500.0,0.00014683,2]
[334947851,1723666255475,-500.0,0.00014683,2]
[334947852,1723666255484,-500.0,0.00014683,2]
[334947853,1723666255493,-500.0,0.00014683,2]
[334947854,1723666255503,-732.75227268,0.00014683,2]
[334947855,1723666255518,-403.61772732,0.00014683,2]
[334947856,1723666255527,-500.0,0.00014683,2]
[334947857,1723666255536,-291.73470832,0.00014683,2]
[334947858,1723666255545,-500.0,0.00014683,2]
[334947859,1723666255554,-500.0,0.00014683,2]
[334947860,1723666255563,-792.71,0.00014683,2]
[334947861,1723666255572,-173.76144544,0.00014683,2]
[334947862,1723666255581,-500.0,0.00014683,2]
[334947863,1723666255590,-1000.0,0.00014732,2]
[334947864,1723666255599,-2530.51701997,0.00014743,2]
[334947865,1723666255610,-529.685291,0.00014743,2]
[334947866,1723666255622,-7116.01163983,0.00014743,2]
[334947867,1723666255631,-324.43915705,0.00014754,2]
[334947868,1723666255643,-437.72788004,0.00014754,2]
[334947869,1723666255873,-249.51,0.00013851,2]
[334947870,1723666255884,-61.24725806,0.00013851,2]
[334947871,1723666255895,-188.26274194,0.00013851,2]
[334947872,1723666255905,-249.51,0.00013851,2]
[334947873,1723666255915,-249.51,0.00013851,2]
[334947874,1723666255924,-249.51,0.00013851,2]
[334947875,1723666255934,-70.00725806,0.00013851,2]
[334947876,1723666255945,-179.50274194,0.00013851,2]
[334947877,1723666255955,-249.51,0.00013851,2]
[334947878,1723666255965,-249.51,0.00013851,2]
[334947879,1723666255974,-249.51,0.00013851,2]
[334947880,1723666255983,-249.51,0.00013851,2]
[334947881,1723666255992,-249.51,0.00013851,2]
[334947882,1723666256002,-249.51,0.00013851,2]
[334947883,1723666256011,-249.51,0.00013851,2]
[334947884,1723666256021,-249.51,0.00013851,2]
[334947885,1723666256030,-1435.68537748,0.00014754,2]
[334947886,1723666256050,-249.51,0.00013851,2]
[334947887,1723666256059,-595.25711332,0.00014754,2]
[334947888,1723666256070,-7383.10442291,0.00014754,2]
[334947889,1723666256079,-10176.2139508,0.00014764,2]
[334947890,1723666256089,-10176.2139508,0.00014774,2]
[334947891,1723666256098,-1624.17022745,0.00014783,2]
[334947892,1723666256109,-907.5,0.00014783,2]
[334947893,1723666256119,-2427.55502287,0.00014783,2]
[334947897,1723666981032,155.0,9.899e-05,2]
[334947899,1723667285044,2309.99331483,0.00027,120]
[334947925,1723667422898,509.47,0.00027,120]
[334947928,1723667431628,-5403.79429818,0.00010009,2]
[334947929,1723667431638,-3875.44196721,0.00010097,2]
[334947930,1723667431648,-151.22,0.00010137,2]
[334947931,1723667431658,-300.0,0.00010679,2]
[334947932,1723667431669,-7342.0508226,0.0001068,2]
[334947933,1723667431679,-571.46670148,0.00010699,2]
[334947953,1723667437831,-1931.11895853,0.00010699,2]
[334947954,1723667437841,-432.47832469,0.00010699,2]
[334947955,1723667437852,-1139.1217656,0.00010852,2]
[334947956,1723667437861,-892.72350459,0.00010861,2]
[334947957,1723667437870,-328.2488375,0.00010862,2]
[334947958,1723667437882,-155.0,0.00010862,2]
[334947959,1723667437891,-293.68354989,0.00010862,2]
[334947960,1723667437900,-264.49036255,0.00010888,2]
[334947961,1723667437909,-155.0,0.00010888,2]
[334947962,1723667437919,-600.74422133,0.00010888,2]
[334947963,1723667437929,-155.0,0.00010888,2]
[334947964,1723667437937,-440.08291615,0.0001089,2]
[334947965,1723667437946,-153.68776239,0.000109,2]
[334947966,1723667437955,-15483.10746637,0.00010949,2]
[334947967,1723667437964,-151.01,0.0001099,2]
[334947968,1723667437973,-151.01,0.0001099,2]
[334947969,1723667437982,-151.01,0.0001099,2]
[334947970,1723667437991,-499.99,0.00010997,2]
[334947971,1723667438001,-1846.54794249,0.00010997,2]
[334947972,1723667438010,-162882.37086469,0.00011,2]
[334947973,1723667438021,-319.94549499,0.00011,2]
[334947974,1723667438040,-2735.53908701,0.00011,2]
[334947975,1723667438051,-37102.9931221,0.00011,2]
[334947976,1723667438067,-1143979.11594219,0.00011,2]
[334947977,1723667438078,-653.67901261,0.00011,2]
[334947985,1723667439507,-1076.0,0.00011,2]
[334947986,1723667439567,-319.76793164,0.00011,2]
[334947987,1723667439686,-1548.08889873,0.00011,2]
[334948311,1723667443310,-264.49036255,0.00010862,2]
[334948314,1723667443320,-17854.75973752,0.00011,2]
[334948317,1723667443332,-2664.456795,0.00011,2]
[334948343,1723667446103,-568.80754221,0.00010862,2]
[334948346,1723667446122,-2453.37245779,0.00010862,2]
[334948884,1723667672818,158.82,9.656e-05,2]
[334948885,1723667854024,1013.57620034,0.00027,120]
[334948888,1723668150855,150.87,8.835e-05,2]
[334948910,1723668573346,-240.0,9.928e-05,2]
[334948911,1723668573375,-2123.22351966,9.93e-05,2]
[334948912,1723668573412,-1809.70041456,9.93e-05,2]
[334948917,1723668631831,-160.0,9.964e-05,2]
[334948918,1723668631841,-740.0,9.999e-05,2]
[334948919,1723668631852,-575.05,9.999e-05,2]
[334948920,1723668631863,-312.02099594,9.999e-05,2]
[334948921,1723668631889,-683.60382952,9.999e-05,2]
[334948922,1723668631899,-329.60877737,9.999e-05,2]
[334948923,1723668631947,-3837.0695396,9.999e-05,2]
[334948925,1723668631956,-550.0,0.0001,2]
[334948926,1723668631965,-373.64,0.00010149,2]
[334948927,1723668631973,-300.0,0.00010165,2]
[334948928,1723668631982,-4005.62,0.00010166,2]
[334948929,1723668631991,-8588.73,0.00010246,2]
[334948930,1723668632001,-1000.0,0.0001046,2]
[334948932,1723668632010,-4794.79266657,0.00010505,2]
[334948933,1723668632019,-364.02,0.00010505,2]
[334948935,1723668632028,-150.0,0.00010543,2]
[334948937,1723668632037,-37142.77,0.00010544,2]
[334948939,1723668632046,-404.94420056,0.00010699,2]
[334948941,1723668632056,-250.0,0.00010751,2]
[334948943,1723668632065,-197.1386879,0.0001089,2]
[334948945,1723668632075,-255.19609183,0.00010899,2]
[334948947,1723668632085,-319.0248324,0.000109,2]
[334948949,1723668632094,-155.0,0.00010926,2]
[334948951,1723668632103,-499.99,0.00010927,2]
[334948953,1723668632112,-150.99,0.00010943,2]
[334948955,1723668632122,-1744.76,0.00010948,2]
[334948957,1723668632132,-4996.7703879,0.00010949,2]
[334948959,1723668632142,-9571.35,0.00010959,2]
[334948961,1723668632151,-250.0,0.00010959,2]
[334948963,1723668632161,-2841.12816254,0.00010999,2]
[334948964,1723668632170,-155.0,0.00010999,2]
[334948965,1723668632179,-150159.01340773,0.00011,2]
[334948973,1723668637863,-257.9352178,9.93e-05,2]
[334948975,1723668637873,-7719.0647822,0.00011,2]
[334948977,1723668638191,-12596.31907301,0.00011,2]
[334948978,1723668638203,-5603.8218397,0.00011,2]
[334948980,1723668639792,-681.26488617,0.00011,2]
[334948981,1723668639857,-53197.42674567,0.00011,2]
[334948982,1723668639869,-13253.22423378,0.00011,2]
[334948983,1723668639880,-34142.06872167,0.00011,2]
[334948984,1723668639897,-9511.12059182,0.00011,2]
[334948985,1723668639909,-267.46,0.00011,2]
[334948986,1723668639934,-4161.71901686,0.00011,2]
[334948987,1723668639972,-5577.69796219,0.00011,2]
[334948988,1723668639983,-24869.23010947,0.00011,2]
[334949251,1723668642720,-10001.989951,0.00011,2]
[334949295,1723668643187,-643.71140223,0.00011,2]
[334949298,1723668643199,-20492.59590905,0.00011,2]
[334949299,1723668643211,-1038.95195931,0.00011,2]
[334949300,1723668643223,-1012.97035628,0.00011,2]
[334949302,1723668643235,-680.06549859,0.00011,2]
[334949303,1723668643247,-613.09825755,0.00011,2]
[334949304,1723668643258,-293.75433028,0.00011,2]
[334949306,1723668643270,-953.70061537,0.00011,2]
[334949308,1723668643281,-328.32741597,0.00011,2]
[334949311,1723668643292,-3165.81931308,0.00011,2]
[334949328,1723668645763,-1523.78274965,0.00011,2]
[334949331,1723668645879,-12780.09052708,0.00011,2]
[334949332,1723668645994,-250.10479714,0.00011,2]
[334949333,1723668646007,-611.7165479,0.00011,2]
[334949334,1723668646052,-431.885,0.00011,2]
[334949335,1723668646064,-815.6971792,0.00011,2]
[334949336,1723668646112,-549.99,0.00011,2]
[334949349,1723668977741,1087.081505,0.00025,67]
[334949350,1723668981332,1087.081505,0.00025,68]
[334949351,1723668984834,1087.081505,0.00025,69]
[334949352,1723669000520,1087.081505,0.00025,73]
[334949353,1723669051661,1117.081505,0.00025,74]
[334949354,1723669054444,1117.081505,0.00025,75]
[334949355,1723669057521,1117.081505,0.00025,76]
[334949356,1723669099012,1117.081505,0.00025,80]
[334949357,1723669101620,1117.081505,0.00025,81]
[334949358,1723669104222,1117.081505,0.00025,82]
[334949359,1723669107290,1117.081505,0.00025,83]
[334949360,1723669128269,797.081505,0.00025,87]
[334949361,1723669129829,167.35,9.329e-05,2]
[334949362,1723669131284,797.081505,0.00025,88]
[334949363,1723669134278,797.081505,0.00025,89]
[334949364,1723669161539,797.081505,0.00025,90]
[334949365,1723669186900,997.081505,0.00025,90]
[334949366,1723669190983,997.081505,0.00025,89]
[334949367,1723669200697,997.081505,0.00025,88]
[334949368,1723669205661,997.081505,0.00025,87]
[334949369,1723669240107,997.081505,0.00025,83]
[334949370,1723669243235,997.081505,0.00025,82]
[334949371,1723669245877,997.081505,0.00025,81]
[334949372,1723669249157,997.081505,0.00025,89]
[334949373,1723669295262,607.081505,0.00025,76]
[334949374,1723669298680,607.081505,0.00025,75]
[334949375,1723669303257,607.081505,0.00025,74]
[334949376,1723669307034,607.081505,0.00025,73]
[334949377,1723669347679,887.081505,0.00027,120]
[334949378,1723669359408,997.081505,0.00027,120]
[334949379,1723669371025,797.081505,0.00027,120]
[334949380,1723669386962,677.081505,0.00027,120]
[334949381,1723669410083,577.081505,0.00027,120]
[334949382,1723669433983,499.081505,0.00027,120]
[334949383,1723669476515,499.081505,0.00025,60]
[334949384,1723669479385,499.081505,0.00025,61]
[334949385,1723669483279,499.081505,0.00025,62]
[334949386,1723669485839,499.081505,0.00025,63]
[334949387,1723669512053,499.081505,0.00025,66]
[334949388,1723669514775,499.081505,0.00025,67]
[334949389,1723669517671,499.081505,0.00025,68]
[334949390,1723669521280,499.081505,0.00025,69]
[334949391,1723669538558,499.081505,0.00025,73]
[334949392,1723669541683,499.081505,0.00025,74]
[334949393,1723669544367,499.081505,0.00025,75]
[334949394,1723669547293,499.081505,0.00025,76]
[334949395,1723669575373,557.081505,0.00025,80]
[334949396,1723669577847,557.081505,0.00025,81]
[334949397,1723669580312,557.081505,0.00025,82]
[334949398,1723669583346,557.081505,0.00025,83]
[334949399,1723669588119,557.081505,0.00025,87]
[334949400,1723669590645,557.081505,0.00025,88]
[334949401,1723669593464,557.081505,0.00025,89]
[334949402,1723669615604,557.081505,0.00025,90]
[334949403,1723669631020,158.98,9.14e-05,2]
[334949404,1723669640972,557.081505,0.00027,120]
[334949405,1723669718132,659.081505,0.00027,120]
[334949406,1723669719759,659.081505,0.00027,120]
[334949411,1723669774676,881.081505,0.00025,60]
[334949412,1723669776745,881.081505,0.00025,60]
[334949413,1723669779371,881.081505,0.00025,61]
[334949414,1723669780734,881.081505,0.00025,61]
[334949415,1723669783547,881.081505,0.00025,62]
[334949416,1723669784307,881.081505,0.00025,62]
[334949417,1723669787122,881.081505,0.00025,63]
[334949418,1723669788791,881.081505,0.00025,63]
[334949419,1723669792665,881.081505,0.00025,67]
[334949420,1723669793392,881.081505,0.00025,67]
[334949421,1723669796175,881.081505,0.00025,68]
[334949422,1723669796923,881.081505,0.00025,68]
[334949423,1723669800317,881.081505,0.00025,69]
[334949424,1723669801275,881.081505,0.00025,69]
[334949425,1723669811969,881.081505,0.00025,70]
[334949426,1723669812680,881.081505,0.00025,70]
[334949427,1723669820272,881.081505,0.00025,74]
[334949428,1723669821138,881.081505,0.00025,74]
[334949429,1723669823960,881.081505,0.00025,75]
[334949430,1723669824770,881.081505,0.00025,75]
[334949431,1723669829837,881.081505,0.00025,76]
[334949432,1723669830562,881.081505,0.00025,76]
[334949441,1723669831990,-200.0,9.97e-05,2]
[334949442,1723669831999,-173.55877246,9.997e-05,2]
[334949443,1723669832008,-550.0,0.0001,2]
[334949444,1723669832017,-270.62814649,0.00010009,2]
[334949445,1723669832025,-192.78575619,0.00010097,2]
[334949446,1723669832034,-155.0,0.00010505,2]
[334949447,1723669832044,-300.0,0.00010899,2]
[334949448,1723669832053,-3230.45530596,0.00010899,2]
[334949449,1723669832063,-8703.7603,0.000109,2]
[334949450,1723669832072,-938.4516,0.000109,2]
[334949451,1723669832081,-1000.0,0.000109,2]
[334949452,1723669832090,-190.7,0.00010971,2]
[334949453,1723669832099,-200.0,0.00010992,2]
[334949454,1723669832108,-701.2859907,0.00011,2]
[334949455,1723669832117,-250.0,0.00011,2]
[334949456,1723669832126,-8628.07,0.00011,2]
[334949457,1723669832136,-3000.0,0.00011,2]
[334949458,1723669832145,-1091.54,0.00011,2]
[334949459,1723669832154,-250.0,0.00011005,2]
[334949460,1723669832163,-164.40260801,0.0001104,2]
[334949461,1723669832173,-603.41,0.00011041,2]
[334949462,1723669832182,-493.59808335,0.00011049,2]
[334949463,1723669832191,-207.76,0.0001105,2]
[334949464,1723669832199,-500.0,0.00011068,2]
[334949465,1723669832209,-274.09,0.00011141,2]
[334949466,1723669832218,-487.53,0.00011141,2]
[334949467,1723669832227,-687.14739384,0.00011147,2]
[334949468,1723669832236,-15408.25,0.00011148,2]
[334949470,1723669832244,-192.0,0.00011161,2]
[334949472,1723669832253,-155.0,0.00011201,2]
[334949474,1723669832263,-160.0,0.0001121,2]
[334949476,1723669832272,-485.18668102,0.00011219,2]
[334949478,1723669832281,-800.0,0.0001122,2]
[334949479,1723669832291,-236.34424982,0.00011239,2]
[334949481,1723669832300,-172.66294306,0.00011265,2]
[334949482,1723669832309,-896.29,0.00011266,2]
[334949483,1723669832318,-859.01909382,0.0001131,2]
[334949484,1723669832327,-206.00767269,0.00011311,2]
[334949485,1723669832336,-155.0,0.00011336,2]
[334949486,1723669832345,-16803.59334265,0.00011337,2]
[334949487,1723669832489,-1570.52069261,0.00011337,2]
[334949488,1723669832502,-609.67999998,0.00011337,2]
[334949489,1723669832512,-1974.8225,0.00011337,2]
[334949490,1723669832523,-876.11960137,0.00011337,2]
[334949491,1723669832536,-340.78735789,0.00011337,2]
[334949492,1723669832552,-4331.00394164,0.00011337,2]
[334949493,1723669832563,-540.35354165,0.00011337,2]
[334949494,1723669832574,-3545.49602221,0.00011337,2]
[334949495,1723669832583,-365.80180037,0.00011403,2]
[334949496,1723669832592,-155.0,0.00011403,2]
[334949497,1723669832602,-158.98,0.00011404,2]
[334949498,1723669832612,-200.0,0.00011434,2]
[334949499,1723669832621,-174.11,0.00011948,2]
[334949500,1723669832631,-3272.57328005,0.00012,2]
[334949501,1723669832643,-1727.42671995,0.00012,2]
[334949502,1723669832652,-600.0,0.00012,2]
[334949503,1723669832661,-285.68200727,0.0001209,2]
[334949504,1723669832677,-727.39559761,0.0001209,2]
[334949505,1723669832689,-703.37788318,0.0001209,2]
[334949506,1723669832700,-542.67878054,0.0001209,2]
[334949507,1723669832719,-436.06621227,0.0001209,2]
[334949508,1723669832731,-304.79951913,0.0001209,2]
[334949509,1723669832742,-487.79059827,0.00012127,2]
[334949510,1723669832757,-4118.47040795,0.00012127,2]
[334949511,1723669832768,-435.86135672,0.00012127,2]
[334949512,1723669833447,881.081505,0.00025,77]
[334949513,1723669834216,881.081505,0.00025,77]
[334949515,1723669838110,-2730.40354718,0.00012127,2]
[334949516,1723669838170,-1434.98795415,0.00012127,2]
[334949517,1723669838180,-200.0,0.00012366,2]
[334949518,1723669838190,-160.0,0.00012455,2]
[334949519,1723669838199,-165.14,0.00012527,2]
[334949520,1723669838209,-5843.0,0.00012542,2]
[334949521,1723669838219,-1204.0,0.00012542,2]
[334949522,1723669838228,-5134.0,0.00012542,2]
[334949523,1723669838237,-393.002,0.00012542,2]
[334949524,1723669838247,-21761.0,0.00012542,2]
[334949525,1723669838256,-1673.0,0.00012542,2]
[334949526,1723669838266,-192.0,0.00012556,2]
[334949527,1723669838275,-800.0,0.00012623,2]
[334949528,1723669838285,-4755.25515557,0.00012628,2]
[334949529,1723669838296,-202.99546622,0.00012727,2]
[334949530,1723669838312,-1257.0,0.00012728,2]
[334949531,1723669838321,-1583.0,0.00012728,2]
[334949532,1723669838330,-1942.927,0.00012728,2]
[334949533,1723669838340,-622.0,0.00012728,2]
[334949534,1723669838349,-446.0,0.00012728,2]
[334949535,1723669838358,-1132.0,0.00012728,2]
[334949536,1723669838367,-555.0,0.00012728,2]
[334949537,1723669838376,-834.333,0.00012728,2]
[334949538,1723669838386,-150.0,0.00012728,2]
[334949539,1723669838395,-333.599,0.00012728,2]
[334949540,1723669838404,-1554.952,0.00012728,2]
[334949541,1723669838414,-150.0,0.00012728,2]
[334949542,1723669838423,-1178.0,0.00012728,2]
[334949543,1723669838432,-764.0,0.00012728,2]
[334949544,1723669838442,-3000.0,0.0001334,2]
[334949545,1723669838453,-358.97,0.00013498,2]
[334949546,1723669838465,-206.35744555,0.00013598,2]
[334949547,1723669838474,-32160.3146,0.00013598,2]
[334949548,1723669838483,-7500.0,0.00013598,2]
[334949549,1723669838493,-158.98,0.00013668,2]
[334949550,1723669838503,-155.0,0.00013687,2]
[334949551,1723669838513,-948.7757435,0.00013697,2]
[334949552,1723669838522,-500.0,0.00013698,2]
[334949553,1723669838533,-500.0,0.00013698,2]
[334949554,1723669838543,-152.3689321,0.00013698,2]
[334949555,1723669838553,-500.0,0.00013698,2]
[334949556,1723669838563,-500.0,0.00013698,2]
[334949557,1723669838572,-500.0,0.00013698,2]
[334949558,1723669838582,-500.0,0.00013698,2]
[334949559,1723669838591,-500.0,0.00013698,2]
[334949560,1723669838601,-500.0,0.00013698,2]
[334949561,1723669838610,-500.0,0.00013698,2]
[334949562,1723669838619,-500.0,0.00013698,2]
[334949563,1723669838629,-500.0,0.00013698,2]
[334949564,1723669838638,-500.0,0.00013698,2]
[334949565,1723669838648,-500.0,0.00013698,2]
[334949566,1723669838657,-560.25772282,0.00013698,2]
[334949567,1723669838667,-500.0,0.00013698,2]
[334949568,1723669838677,-500.0,0.00013698,2]
[334949569,1723669838686,-500.0,0.00013698,2]
[334949570,1723669838696,-346.55198141,0.00013698,2]
[334949571,1723669838706,-500.0,0.00013698,2]
[334949572,1723669838716,-500.0,0.00013698,2]